[Event "Late-Titled-Tuesday-Blitz-September-19-2023"]
[Site "Chess.com"]
[Date "2023.09.19"]
[Round "2"]
[White "Siemba"]
[Black "WelshTiger"]
[Result "0-1"]
[WhiteElo "2595"]
[BlackElo "2397"]
[TimeControl "180+1"]
[EndTime "14:18:10 PDT"]
[Termination "WelshTiger won on time"]

1. b3 {[%clk 0:03:00.9]} 1... Nc6 {[%clk 0:02:57.6]} 2. Bb2 {[%clk 0:03:01.4]}
2... e5 {[%clk 0:02:57.3]} 3. e3 {[%clk 0:03:01.3]} 3... a6 {[%clk 0:02:57]} 4.
Nf3 {[%clk 0:03:01.4]} 4... d6 {[%clk 0:02:54.6]} 5. d4 {[%clk 0:02:57.9]} 5...
exd4 {[%clk 0:02:49.8]} 6. Nxd4 {[%clk 0:02:53.8]} 6... Nf6 {[%clk 0:02:44]} 7.
Bd3 {[%clk 0:02:46.3]} 7... Be7 {[%clk 0:02:42.1]} 8. Nxc6 {[%clk 0:02:45.3]}
8... bxc6 {[%clk 0:02:42.6]} 9. Nd2 {[%clk 0:02:45.3]} 9... O-O {[%clk
0:02:41.9]} 10. Nf3 {[%clk 0:02:40.9]} 10... Bg4 {[%clk 0:02:40.3]} 11. O-O
{[%clk 0:02:39.5]} 11... Re8 {[%clk 0:02:39.7]} 12. h3 {[%clk 0:02:39.6]} 12...
Bh5 {[%clk 0:02:39.6]} 13. Be2 {[%clk 0:02:32.3]} 13... Ne4 {[%clk 0:02:21.5]}
14. Nd4 {[%clk 0:02:30.5]} 14... Bxe2 {[%clk 0:02:20]} 15. Qxe2 {[%clk
0:02:31.4]} 15... Qd7 {[%clk 0:02:19.7]} 16. Qf3 {[%clk 0:02:23.2]} 16... Bf6
{[%clk 0:02:16.5]} 17. Rfd1 {[%clk 0:02:21.3]} 17... c5 {[%clk 0:02:12.4]} 18.
c4 {[%clk 0:01:51]} 18... cxd4 {[%clk 0:02:12.3]} 19. Bxd4 {[%clk 0:01:51.8]}
19... Bxd4 {[%clk 0:02:11.1]} 20. Rxd4 {[%clk 0:01:52.7]} 20... Nc5 {[%clk
0:02:08.2]} 21. Rad1 {[%clk 0:01:51.8]} 21... a5 {[%clk 0:01:56.4]} 22. Rd5
{[%clk 0:01:51.7]} 22... Qe7 {[%clk 0:01:55.5]} 23. R1d4 {[%clk 0:01:47.6]}
23... g6 {[%clk 0:01:49.1]} 24. Rf4 {[%clk 0:01:39.3]} 24... Rab8 {[%clk
0:01:47.3]} 25. h4 {[%clk 0:01:30.9]} 25... a4 {[%clk 0:01:45.1]} 26. h5 {[%clk
0:01:30.9]} 26... axb3 {[%clk 0:01:44.5]} 27. axb3 {[%clk 0:01:30.8]} 27... Rxb3
{[%clk 0:01:42.6]} 28. hxg6 {[%clk 0:01:31.2]} 28... hxg6 {[%clk 0:01:42.3]} 29.
g3 {[%clk 0:01:22.3]} 29... Rd3 {[%clk 0:01:26.8]} 30. Rh5 {[%clk 0:01:02.8]}
30... Ne6 {[%clk 0:01:12.2]} 31. Rxf7 {[%clk 0:00:46.7]} 31... Ng5 {[%clk
0:00:49.9]} 32. Rxg5 {[%clk 0:00:29.7]} 32... Qxg5 {[%clk 0:00:49.2]} 33. Rxc7
{[%clk 0:00:28.6]} 33... Rf8 {[%clk 0:00:42.6]} 34. Qe4 {[%clk 0:00:22.5]} 34...
Qf5 {[%clk 0:00:41.5]} 35. Qf4 {[%clk 0:00:09.6]} 35... Qxf4 {[%clk 0:00:39.3]}
36. gxf4 {[%clk 0:00:10.5]} 36... Rf7 {[%clk 0:00:38.7]} 37. Rc6 {[%clk
0:00:10.2]} 37... Kf8 {[%clk 0:00:34.6]} 38. c5 {[%clk 0:00:10.2]} 38... dxc5
{[%clk 0:00:32.1]} 39. Rxc5 {[%clk 0:00:10.5]} 39... Rd6 {[%clk 0:00:31.6]} 40.
Rg5 {[%clk 0:00:10.7]} 40... Rf5 {[%clk 0:00:30.4]} 41. Rg3 {[%clk 0:00:10.8]}
41... Kf7 {[%clk 0:00:30.8]} 42. Kg2 {[%clk 0:00:10.5]} 42... Ra5 {[%clk
0:00:31.1]} 43. Kf3 {[%clk 0:00:10.9]} 43... Ra2 {[%clk 0:00:30.1]} 44. Rg5
{[%clk 0:00:10.8]} 44... Rdd2 {[%clk 0:00:29.5]} 45. Rg2 {[%clk 0:00:11.4]}
45... Kf6 {[%clk 0:00:29.2]} 46. Rh2 {[%clk 0:00:11.4]} 46... Rd5 {[%clk
0:00:27]} 47. Rg2 {[%clk 0:00:11.9]} 47... Rh5 {[%clk 0:00:26.6]} 48. Ke4 {[%clk
0:00:08.9]} 48... Ra4+ {[%clk 0:00:25.7]} 49. Kf3 {[%clk 0:00:09.2]} 49... Ra1
{[%clk 0:00:26.2]} 50. Ke4 {[%clk 0:00:08.9]} 50... g5 {[%clk 0:00:22.5]} 51.
fxg5+ {[%clk 0:00:07.4]} 51... Rxg5 {[%clk 0:00:22.6]} 52. Rh2 {[%clk
0:00:08.2]} 52... Ra4+ {[%clk 0:00:20.7]} 53. Kf3 {[%clk 0:00:08.7]} 53... Rf5+
{[%clk 0:00:21]} 54. Kg3 {[%clk 0:00:08.7]} 54... Ra7 {[%clk 0:00:19.9]} 55. f4
{[%clk 0:00:08.1]} 55... Re7 {[%clk 0:00:19.3]} 56. Kf3 {[%clk 0:00:08.2]} 56...
Ra5 {[%clk 0:00:18.7]} 57. Rh6+ {[%clk 0:00:07.9]} 57... Kg7 {[%clk 0:00:19.2]}
58. Rh2 {[%clk 0:00:06.6]} 58... Ra3 {[%clk 0:00:18.5]} 59. Re2 {[%clk
0:00:07.2]} 59... Kf6 {[%clk 0:00:18.9]} 60. Re1 {[%clk 0:00:07.6]} 60... Kf5
{[%clk 0:00:19]} 61. Re2 {[%clk 0:00:08.2]} 61... Rh7 {[%clk 0:00:18.8]} 62. Kg3
{[%clk 0:00:06]} 62... Ke4 {[%clk 0:00:18.3]} 63. Kg4 {[%clk 0:00:04.1]} 63...
Rxe3 {[%clk 0:00:18]} 64. Rxe3+ {[%clk 0:00:04]} 64... Kxe3 {[%clk 0:00:18.1]}
65. f5 {[%clk 0:00:04.9]} 65... Ke4 {[%clk 0:00:18.6]} 66. Kg5 {[%clk
0:00:05.5]} 66... Ke5 {[%clk 0:00:19.2]} 67. Kg6 {[%clk 0:00:05.9]} 67... Rh2
{[%clk 0:00:18]} 68. f6 {[%clk 0:00:06.1]} 68... Rg2+ {[%clk 0:00:18.1]} 0-1

[Event "Late-Titled-Tuesday-Blitz-September-19-2023"]
[Site "Chess.com"]
[Date "2023.09.19"]
[Round "2"]
[White "santosalberto1987"]
[Black "hurricane7791"]
[Result "0-1"]
[WhiteElo "2508"]
[BlackElo "2717"]
[TimeControl "180+1"]
[EndTime "14:18:11 PDT"]
[Termination "hurricane7791 won on time"]

1. e4 {[%clk 0:03:00.9]} 1... c5 {[%clk 0:02:54.1]} 2. Nf3 {[%clk 0:03:00.9]}
2... d6 {[%clk 0:02:54.4]} 3. Bb5+ {[%clk 0:03:00.5]} 3... Nd7 {[%clk
0:02:54.7]} 4. d4 {[%clk 0:02:58.1]} 4... cxd4 {[%clk 0:02:55.6]} 5. Qxd4 {[%clk
0:02:58.1]} 5... a6 {[%clk 0:02:56.2]} 6. Bxd7+ {[%clk 0:02:58]} 6... Qxd7
{[%clk 0:02:57.1]} 7. Nc3 {[%clk 0:02:56.1]} 7... e5 {[%clk 0:02:54.4]} 8. Qd3
{[%clk 0:02:55.6]} 8... Qc6 {[%clk 0:02:52.6]} 9. Bg5 {[%clk 0:02:44.5]} 9... h6
{[%clk 0:02:52.8]} 10. Bh4 {[%clk 0:02:31.5]} 10... Be6 {[%clk 0:02:52.7]} 11.
O-O-O {[%clk 0:02:29.4]} 11... g5 {[%clk 0:02:42.5]} 12. Bg3 {[%clk 0:02:24.7]}
12... Rc8 {[%clk 0:02:30.7]} 13. Kb1 {[%clk 0:02:05.1]} 13... Nf6 {[%clk
0:02:29.6]} 14. Nd5 {[%clk 0:01:56]} 14... Bxd5 {[%clk 0:02:18.8]} 15. exd5
{[%clk 0:01:56.9]} 15... Qd7 {[%clk 0:02:07.9]} 16. Bxe5 {[%clk 0:01:33]} 16...
dxe5 {[%clk 0:01:58.9]} 17. Nxe5 {[%clk 0:01:33.9]} 17... Qd6 {[%clk 0:01:56.2]}
18. Rhe1 {[%clk 0:01:33.7]} 18... Be7 {[%clk 0:01:56.2]} 19. Nc4 {[%clk
0:01:33.4]} 19... Rxc4 {[%clk 0:01:55.3]} 20. Qxc4 {[%clk 0:01:34.3]} 20... O-O
{[%clk 0:01:54]} 21. h4 {[%clk 0:01:29.8]} 21... Rd8 {[%clk 0:01:40.4]} 22. hxg5
{[%clk 0:01:29]} 22... hxg5 {[%clk 0:01:40.4]} 23. a3 {[%clk 0:00:54.2]} 23...
Bf8 {[%clk 0:01:39.3]} 24. Qd4 {[%clk 0:00:45.7]} 24... Bg7 {[%clk 0:01:30.1]}
25. c4 {[%clk 0:00:40.8]} 25... Nd7 {[%clk 0:01:25.5]} 26. Qe3 {[%clk
0:00:36.4]} 26... Qf6 {[%clk 0:01:23]} 27. Rd2 {[%clk 0:00:31.8]} 27... Rc8
{[%clk 0:01:18.6]} 28. Qe7 {[%clk 0:00:27.2]} 28... Qf5+ {[%clk 0:01:18.4]} 29.
Ka2 {[%clk 0:00:25.8]} 29... Rxc4 {[%clk 0:01:07.4]} 30. Qd8+ {[%clk 0:00:25.6]}
30... Bf8 {[%clk 0:01:01.8]} 31. Re8 {[%clk 0:00:18.4]} 31... g4 {[%clk
0:00:44]} 32. d6 {[%clk 0:00:17.1]} 32... Kg7 {[%clk 0:00:38.9]} 33. Re7 {[%clk
0:00:15.9]} 33... Nf6 {[%clk 0:00:26.5]} 34. Rc7 {[%clk 0:00:13.7]} 34... Re4
{[%clk 0:00:19]} 35. d7 {[%clk 0:00:12.3]} 35... Qe6+ {[%clk 0:00:19.3]} 36. b3
{[%clk 0:00:10.3]} 36... Re2 {[%clk 0:00:19.6]} 37. Rcc2 {[%clk 0:00:09.2]}
37... Re1 {[%clk 0:00:13.6]} 38. Qxf8+ {[%clk 0:00:06.8]} 38... Kxf8 {[%clk
0:00:14.1]} 39. d8=Q+ {[%clk 0:00:07.4]} 39... Kg7 {[%clk 0:00:15]} 40. Qd4
{[%clk 0:00:07.6]} 40... Qf5 {[%clk 0:00:13.8]} 41. Kb2 {[%clk 0:00:05.9]} 41...
b5 {[%clk 0:00:14]} 42. Re2 {[%clk 0:00:05.9]} 42... Rf1 {[%clk 0:00:13.4]} 43.
Rc6 {[%clk 0:00:05.8]} 43... Qb1+ {[%clk 0:00:12.1]} 44. Kc3 {[%clk 0:00:05.9]}
44... Rc1+ {[%clk 0:00:12.8]} 45. Kb4 {[%clk 0:00:05.9]} 45... Rxc6 {[%clk
0:00:13.7]} 46. Re5 {[%clk 0:00:05.7]} 46... Qc1 {[%clk 0:00:13.4]} 47. Ka5
{[%clk 0:00:03.9]} 47... Qc3+ {[%clk 0:00:13.2]} 48. Qxc3 {[%clk 0:00:04.2]}
48... Rxc3 {[%clk 0:00:14.1]} 49. Kxa6 {[%clk 0:00:04.5]} 49... Rxb3 {[%clk
0:00:14.7]} 50. Rxb5 {[%clk 0:00:04]} 50... Rxa3+ {[%clk 0:00:15]} 51. Kb6
{[%clk 0:00:04.6]} 51... Ra2 {[%clk 0:00:15]} 52. f3 {[%clk 0:00:04.9]} 52...
Rxg2 {[%clk 0:00:14.7]} 53. fxg4 {[%clk 0:00:05.1]} 53... Rxg4 {[%clk 0:00:15]}
54. Rf5 {[%clk 0:00:05.3]} 54... Kg6 {[%clk 0:00:15.9]} 55. Rf1 {[%clk
0:00:05.5]} 55... Ne4 {[%clk 0:00:16.2]} 56. Kc6 {[%clk 0:00:05]} 56... f5
{[%clk 0:00:16.7]} 57. Kd5 {[%clk 0:00:05]} 57... Kf6 {[%clk 0:00:17.1]} 58. Ra1
{[%clk 0:00:04.8]} 58... Rg2 {[%clk 0:00:17.7]} 59. Ra6+ {[%clk 0:00:04.9]}
59... Kg5 {[%clk 0:00:18.1]} 60. Ra8 {[%clk 0:00:05.8]} 60... Kf4 {[%clk
0:00:17.8]} 61. Rf8 {[%clk 0:00:05.6]} 61... Rd2+ {[%clk 0:00:17.8]} 62. Ke6
{[%clk 0:00:05.7]} 62... Rd6+ {[%clk 0:00:18.7]} 63. Ke7 {[%clk 0:00:06.1]}
63... Ra6 {[%clk 0:00:19.2]} 64. Rh8 {[%clk 0:00:05.4]} 64... Ke3 {[%clk
0:00:18.1]} 65. Rf8 {[%clk 0:00:05.1]} 65... f4 {[%clk 0:00:18.3]} 0-1

[Event "Late-Titled-Tuesday-Blitz-September-19-2023"]
[Site "Chess.com"]
[Date "2023.09.19"]
[Round "2"]
[White "Road2GM3000"]
[Black "Heinza9"]
[Result "1-0"]
[WhiteElo "2503"]
[BlackElo "2301"]
[TimeControl "180+1"]
[EndTime "14:18:15 PDT"]
[Termination "Road2GM3000 won on time"]

1. d4 {[%clk 0:03:00.9]} 1... f5 {[%clk 0:02:59.7]} 2. c4 {[%clk 0:03:01.2]}
2... Nf6 {[%clk 0:02:59.8]} 3. Nf3 {[%clk 0:03:01.9]} 3... d6 {[%clk 0:03:00.1]}
4. g3 {[%clk 0:03:02.5]} 4... g6 {[%clk 0:03:00.5]} 5. Bg2 {[%clk 0:03:03.1]}
5... Bg7 {[%clk 0:03:00.9]} 6. O-O {[%clk 0:03:03.8]} 6... O-O {[%clk
0:03:01.1]} 7. Nc3 {[%clk 0:03:04.6]} 7... Qe8 {[%clk 0:03:00.8]} 8. b3 {[%clk
0:03:05.3]} 8... c6 {[%clk 0:02:59.9]} 9. Bb2 {[%clk 0:03:05.9]} 9... e5 {[%clk
0:03:00]} 10. dxe5 {[%clk 0:03:06.1]} 10... dxe5 {[%clk 0:03:00.4]} 11. e4
{[%clk 0:03:05.5]} 11... f4 {[%clk 0:02:59.3]} 12. Ne2 {[%clk 0:03:02.7]} 12...
Nh5 {[%clk 0:02:58.4]} 13. Qd2 {[%clk 0:02:46]} 13... Bg4 {[%clk 0:02:54.5]} 14.
Bc3 {[%clk 0:02:43.6]} 14... Nd7 {[%clk 0:02:47.4]} 15. Qb2 {[%clk 0:02:43]}
15... h6 {[%clk 0:02:18.1]} 16. h3 {[%clk 0:02:42.7]} 16... Bxf3 {[%clk
0:02:09.7]} 17. Bxf3 {[%clk 0:02:42.8]} 17... fxg3 {[%clk 0:02:10]} 18. fxg3
{[%clk 0:02:43.3]} 18... Qe6 {[%clk 0:02:06.8]} 19. Bxh5 {[%clk 0:02:40.4]}
19... gxh5 {[%clk 0:02:01.6]} 20. Kg2 {[%clk 0:02:32.8]} 20... Nc5 {[%clk
0:01:59.4]} 21. Qc2 {[%clk 0:02:31]} 21... Qg6 {[%clk 0:01:58.4]} 22. Rxf8+
{[%clk 0:02:18.5]} 22... Rxf8 {[%clk 0:01:55.5]} 23. Bb4 {[%clk 0:02:16.1]}
23... b6 {[%clk 0:01:47.4]} 24. Bxc5 {[%clk 0:02:16]} 24... bxc5 {[%clk
0:01:47.1]} 25. Rf1 {[%clk 0:02:10]} 25... Rxf1 {[%clk 0:01:41]} 26. Kxf1 {[%clk
0:02:10.1]} 26... Qf6+ {[%clk 0:01:37.5]} 27. Kg2 {[%clk 0:02:09.9]} 27... h4
{[%clk 0:01:37.8]} 28. g4 {[%clk 0:02:09.1]} 28... h5 {[%clk 0:01:37.9]} 29. Qd3
{[%clk 0:02:06.6]} 29... hxg4 {[%clk 0:01:37.6]} 30. hxg4 {[%clk 0:02:07.5]}
30... Bh6 {[%clk 0:01:33.7]} 31. Qf3 {[%clk 0:01:59.5]} 31... Qd6 {[%clk
0:01:14.1]} 32. Ng1 {[%clk 0:01:14.6]} 32... Bf4 {[%clk 0:01:07.6]} 33. Nh3
{[%clk 0:01:11]} 33... Qd2+ {[%clk 0:01:06.4]} 34. Qf2 {[%clk 0:01:10.7]} 34...
Qd3 {[%clk 0:01:05.3]} 35. Nxf4 {[%clk 0:01:00.2]} 35... Qxe4+ {[%clk
0:01:03.7]} 36. Qf3 {[%clk 0:00:06.9]} 36... Qxf4 {[%clk 0:00:58.1]} 37. Qxc6
{[%clk 0:00:07]} 37... Qxg4+ {[%clk 0:00:56.2]} 38. Kf2 {[%clk 0:00:07.8]} 38...
Qf4+ {[%clk 0:00:54.2]} 39. Ke2 {[%clk 0:00:07.7]} 39... e4 {[%clk 0:00:47.1]}
40. Qa8+ {[%clk 0:00:08]} 40... Kg7 {[%clk 0:00:45.6]} 41. Qxa7+ {[%clk
0:00:08.9]} 41... Kg6 {[%clk 0:00:44.5]} 42. Qb6+ {[%clk 0:00:09.6]} 42... Qf6
{[%clk 0:00:42]} 43. Qxc5 {[%clk 0:00:09.2]} 43... Qf3+ {[%clk 0:00:37.5]} 44.
Kd2 {[%clk 0:00:08.1]} 44... h3 {[%clk 0:00:37.7]} 45. Qd6+ {[%clk 0:00:07.3]}
45... Kg5 {[%clk 0:00:34.3]} 46. Qd8+ {[%clk 0:00:06.5]} 46... Kf4 {[%clk
0:00:31.2]} 47. Qf6+ {[%clk 0:00:06.1]} 47... Kg3 {[%clk 0:00:30.2]} 48. Qg5+
{[%clk 0:00:06.4]} 48... Kf2 {[%clk 0:00:23.9]} 49. Qh4+ {[%clk 0:00:05.1]}
49... Kg2 {[%clk 0:00:17.3]} 50. Qg5+ {[%clk 0:00:05.6]} 50... Qg3 {[%clk
0:00:16.9]} 51. Qd5 {[%clk 0:00:04]} 51... Qf2+ {[%clk 0:00:15]} 52. Kc3 {[%clk
0:00:03.6]} 52... Qf3+ {[%clk 0:00:15.1]} 53. Kb4 {[%clk 0:00:02.8]} 53... e3
{[%clk 0:00:14.1]} 54. Qg5+ {[%clk 0:00:02.3]} 54... Kh1 {[%clk 0:00:13.4]} 55.
c5 {[%clk 0:00:02.7]} 55... e2 {[%clk 0:00:12.9]} 56. Qh4 {[%clk 0:00:02.1]}
56... Qe3 {[%clk 0:00:05.6]} 57. Qe1+ {[%clk 0:00:01.8]} 57... Kg2 {[%clk
0:00:04.7]} 58. Qh4 {[%clk 0:00:01.8]} 58... e1=Q+ {[%clk 0:00:04]} 59. Qxe1
{[%clk 0:00:01.7]} 59... Qxe1+ {[%clk 0:00:03.6]} 60. Kb5 {[%clk 0:00:02.6]}
60... Qc3 {[%clk 0:00:03.6]} 61. b4 {[%clk 0:00:03.5]} 61... Qd3+ {[%clk
0:00:03.1]} 62. Kb6 {[%clk 0:00:03.7]} 62... h2 {[%clk 0:00:03.5]} 63. c6 {[%clk
0:00:04.4]} 63... h1=Q {[%clk 0:00:03.5]} 64. a4 {[%clk 0:00:05.3]} 64... Qh6
{[%clk 0:00:02.4]} 65. b5 {[%clk 0:00:06.2]} 65... Qc4 {[%clk 0:00:01.8]} 66.
Kb7 {[%clk 0:00:06.9]} 66... Qc5 {[%clk 0:00:01.1]} 67. a5 {[%clk 0:00:07.1]}
1-0

[Event "Late-Titled-Tuesday-Blitz-September-19-2023"]
[Site "Chess.com"]
[Date "2023.09.19"]
[Round "2"]
[White "Jarming"]
[Black "Pingah9"]
[Result "0-1"]
[WhiteElo "2739"]
[BlackElo "2537"]
[TimeControl "180+1"]
[EndTime "14:18:24 PDT"]
[Termination "Pingah9 won by checkmate"]

1. c4 {[%clk 0:03:00.9]} 1... g6 {[%clk 0:02:58]} 2. g3 {[%clk 0:03:00.9]} 2...
Bg7 {[%clk 0:02:57.9]} 3. Bg2 {[%clk 0:03:01.8]} 3... d6 {[%clk 0:02:58]} 4. Nc3
{[%clk 0:03:02.7]} 4... f5 {[%clk 0:02:58.3]} 5. d4 {[%clk 0:03:02.2]} 5... Nf6
{[%clk 0:02:58.6]} 6. Nh3 {[%clk 0:03:03.1]} 6... O-O {[%clk 0:02:58.7]} 7. O-O
{[%clk 0:03:02.8]} 7... e5 {[%clk 0:02:58.3]} 8. Bg5 {[%clk 0:02:58.5]} 8... h6
{[%clk 0:02:53.8]} 9. dxe5 {[%clk 0:02:56.4]} 9... hxg5 {[%clk 0:02:37.3]} 10.
exf6 {[%clk 0:02:56]} 10... Qxf6 {[%clk 0:02:38.2]} 11. Rb1 {[%clk 0:02:50.1]}
11... c6 {[%clk 0:02:34.7]} 12. f4 {[%clk 0:02:49.4]} 12... gxf4 {[%clk
0:02:21.7]} 13. Nxf4 {[%clk 0:02:48.6]} 13... Na6 {[%clk 0:02:19.8]} 14. Kh1
{[%clk 0:02:37.8]} 14... Be6 {[%clk 0:02:00.8]} 15. Nxe6 {[%clk 0:02:21.6]}
15... Qxe6 {[%clk 0:02:00.4]} 16. e4 {[%clk 0:02:21.9]} 16... fxe4 {[%clk
0:01:52.2]} 17. Nxe4 {[%clk 0:02:22.8]} 17... Rxf1+ {[%clk 0:01:48.8]} 18. Qxf1
{[%clk 0:02:21.4]} 18... Rf8 {[%clk 0:01:46.2]} 19. Qd3 {[%clk 0:02:13.8]} 19...
Be5 {[%clk 0:01:30.7]} 20. b3 {[%clk 0:02:06.4]} 20... Nc7 {[%clk 0:01:12.6]}
21. Rd1 {[%clk 0:02:03.6]} 21... Ne8 {[%clk 0:01:11.6]} 22. b4 {[%clk
0:01:56.4]} 22... a6 {[%clk 0:00:51.8]} 23. a4 {[%clk 0:01:55.6]} 23... Nf6
{[%clk 0:00:46.3]} 24. Ng5 {[%clk 0:01:40.2]} 24... Qf5 {[%clk 0:00:42.9]} 25.
Qxf5 {[%clk 0:01:31.4]} 25... gxf5 {[%clk 0:00:43.8]} 26. b5 {[%clk 0:01:31.1]}
26... axb5 {[%clk 0:00:43.3]} 27. axb5 {[%clk 0:01:32]} 27... cxb5 {[%clk
0:00:33.4]} 28. cxb5 {[%clk 0:01:32.9]} 28... b6 {[%clk 0:00:34]} 29. Rc1 {[%clk
0:01:20.6]} 29... d5 {[%clk 0:00:28.6]} 30. Re1 {[%clk 0:01:13.7]} 30... Ne4
{[%clk 0:00:25.5]} 31. Nf3 {[%clk 0:01:10.8]} 31... Bd6 {[%clk 0:00:24.1]} 32.
Nh4 {[%clk 0:00:54.6]} 32... f4 {[%clk 0:00:22.3]} 33. Bxe4 {[%clk 0:00:48]}
33... dxe4 {[%clk 0:00:23.2]} 34. Rxe4 {[%clk 0:00:44.4]} 34... fxg3 {[%clk
0:00:21.6]} 35. hxg3 {[%clk 0:00:45.3]} 35... Rf1+ {[%clk 0:00:19.7]} 36. Kg2
{[%clk 0:00:45.1]} 36... Rb1 {[%clk 0:00:20.6]} 37. Nf5 {[%clk 0:00:43.9]} 37...
Bc5 {[%clk 0:00:20.1]} 38. g4 {[%clk 0:00:41.5]} 38... Rxb5 {[%clk 0:00:20.1]}
39. Kf3 {[%clk 0:00:41.4]} 39... Kf7 {[%clk 0:00:20.5]} 40. Kf4 {[%clk
0:00:40.8]} 40... Rb1 {[%clk 0:00:20.7]} 41. Ra4 {[%clk 0:00:37.5]} 41... Rf1+
{[%clk 0:00:20.5]} 42. Kg5 {[%clk 0:00:37.3]} 42... Rd1 {[%clk 0:00:19.5]} 43.
Ra7+ {[%clk 0:00:36.5]} 43... Ke6 {[%clk 0:00:20]} 44. Kg6 {[%clk 0:00:32]}
44... b5 {[%clk 0:00:19.8]} 45. Rc7 {[%clk 0:00:30.6]} 45... Ba3 {[%clk
0:00:19.7]} 46. Ra7 {[%clk 0:00:30]} 46... b4 {[%clk 0:00:20]} 47. g5 {[%clk
0:00:30.3]} 47... Rd7 {[%clk 0:00:18.5]} 48. Ra6+ {[%clk 0:00:29.4]} 48... Ke5
{[%clk 0:00:18.4]} 49. Ra5+ {[%clk 0:00:28.7]} 49... Ke4 {[%clk 0:00:18.3]} 50.
Ng3+ {[%clk 0:00:28.1]} 50... Kf3 {[%clk 0:00:18.3]} 51. Nh5 {[%clk 0:00:28.6]}
51... Rd6+ {[%clk 0:00:18.6]} 52. Nf6 {[%clk 0:00:28.8]} 52... Bb2 {[%clk
0:00:18.4]} 53. Rb5 {[%clk 0:00:27.9]} 53... Bc3 {[%clk 0:00:17.8]} 54. Kf7
{[%clk 0:00:27.7]} 54... Ke2 {[%clk 0:00:12.8]} 55. Ne4 {[%clk 0:00:26.6]} 55...
Rd7+ {[%clk 0:00:13.3]} 56. Ke6 {[%clk 0:00:26.5]} 56... Rd4 {[%clk 0:00:13.6]}
57. Kf5 {[%clk 0:00:24.8]} 57... Kd3 {[%clk 0:00:12.5]} 58. Nc5+ {[%clk
0:00:24.4]} 58... Kc4 {[%clk 0:00:12.6]} 59. Ra5 {[%clk 0:00:18.6]} 59... Rd5+
{[%clk 0:00:12.9]} 60. Ke6 {[%clk 0:00:17.5]} 60... Rxc5 {[%clk 0:00:13.8]} 61.
Ra8 {[%clk 0:00:16.3]} 61... Rxg5 {[%clk 0:00:13.8]} 62. Rc8+ {[%clk 0:00:15.7]}
62... Rc5 {[%clk 0:00:14.2]} 63. Rb8 {[%clk 0:00:15.4]} 63... b3 {[%clk
0:00:14.8]} 64. Kd6 {[%clk 0:00:16.3]} 64... b2 {[%clk 0:00:14.7]} 65. Rb7
{[%clk 0:00:16.6]} 65... Rb5 {[%clk 0:00:15.1]} 66. Rc7+ {[%clk 0:00:16.5]}
66... Kd3 {[%clk 0:00:15.4]} 67. Kc6 {[%clk 0:00:16.2]} 67... Rb4 {[%clk
0:00:15.6]} 68. Rd7+ {[%clk 0:00:16]} 68... Rd4 {[%clk 0:00:15.9]} 69. Rb7
{[%clk 0:00:15.9]} 69... Rb4 {[%clk 0:00:16]} 70. Rd7+ {[%clk 0:00:15.3]} 70...
Kc2 {[%clk 0:00:16.2]} 71. Rh7 {[%clk 0:00:15.9]} 71... b1=Q {[%clk 0:00:16.5]}
72. Rh2+ {[%clk 0:00:16.8]} 72... Kb3 {[%clk 0:00:17]} 73. Kc5 {[%clk
0:00:16.2]} 73... Qf5+ {[%clk 0:00:16.9]} 74. Kc6 {[%clk 0:00:16]} 74... Qe6+
{[%clk 0:00:16.8]} 75. Kc7 {[%clk 0:00:16.2]} 75... Qb6+ {[%clk 0:00:15.7]} 76.
Kd7 {[%clk 0:00:16.3]} 76... Rd4+ {[%clk 0:00:16]} 77. Ke7 {[%clk 0:00:16.8]}
77... Qd6+ {[%clk 0:00:16.3]} 78. Kf7 {[%clk 0:00:17.3]} 78... Rf4+ {[%clk
0:00:16.7]} 79. Kg8 {[%clk 0:00:16.5]} 79... Qg6# {[%clk 0:00:16.3]} 0-1